bitfinex-derivatives/quotes_ETHF0:USTF0_20241105
["timestamp","ask_amount","ask_price","bid_price","bid_amount"]
[1730792754164,3.2078,2441.6,2441.5,4.73734781]
[1730792754460,3.2078,2441.6,2441.5,5.10787003]
[1730792755256,6.17647582,2442.0,2441.7,0.40976]
[1730792755450,5.76674582,2442.0,2441.8,0.40974]
[1730792756163,5.76674582,2442.0,2441.4,1.48246]
[1730792756363,5.76674582,2442.0,2441.7,0.40975]
[1730792756364,6.17646582,2442.0,2441.7,0.40975]
[1730792756556,6.17646582,2442.0,2441.8,0.23148203]
[1730792756762,6.17646582,2442.0,2441.8,0.40975]
[1730792757060,5.76674582,2442.0,2441.8,0.40975]
[1730792757762,0.3215,2442.3,2441.4,1.48246]
[1730792757763,3.61748,2442.3,2441.9,4.0952]
[1730792757954,3.2078,2442.3,2442.1,0.4097]
[1730792758151,3.2078,2442.3,2441.7,1.02443]
[1730792758354,3.2078,2442.3,2442.2,0.40969]
[1730792759164,3.2078,2442.3,2441.9,0.40974]
[1730792759359,3.2078,2442.3,2442.2,0.40969]
[1730792759761,0.40964,2442.5,2442.3,0.40967]
[1730792759962,0.40964,2442.5,2442.2,0.40968]
[1730792760158,2.96857582,2442.6,2442.0,3.7118]
[1730792760367,2.55894582,2442.6,2442.1,0.60117749]
[1730792760564,0.40965,2442.5,2442.2,0.23119928]
[1730792760768,0.40965,2442.5,2442.3,0.23116945]
[1730792761065,0.40965,2442.5,2442.2,0.40968]
[1730792761368,2.55894582,2442.6,2442.3,0.23116445]
[1730792761557,0.40967,2442.4,2442.1,0.4097]
[1730792761763,0.40967,2442.4,2442.2,0.23113509]
[1730792761957,2.55894582,2442.3,2442.0,3.7118]
[1730792762161,2.55894582,2442.5,2442.3,0.40967]
[1730792762768,2.96858582,2442.5,2442.3,0.40967]
[1730792763161,0.40966,2442.4,2442.0,3.7118]
[1730792763366,0.40966,2442.4,2442.2,0.40968]
[1730792763566,2.55894582,2442.5,2442.2,0.40968]
[1730792764270,2.55894582,2442.5,2442.0,3.7118]
[1730792764473,0.40966,2442.4,2442.1,0.64065355]
[1730792764670,2.55894582,2442.5,2442.2,0.40968]
[1730792764865,2.55894582,2442.5,2442.3,0.40966]
[1730792765465,2.55894582,2442.5,2442.0,3.7118]
[1730792765466,3.2078,2442.7,2442.0,3.7118]
[1730792765662,3.2078,2442.7,2442.1,0.23090399]
[1730792765865,0.40963,2442.6,2442.3,0.40966]
[1730792767364,3.2078,2442.7,2442.0,3.7118]
[1730792767560,3.2078,2442.7,2442.4,0.40964]
[1730792767561,3.61741,2442.7,2442.4,0.40964]
[1730792767762,0.40963,2442.6,2442.3,0.40966]
[1730792767966,0.40963,2442.6,2442.0,3.7118]
[1730792768273,3.2078,2442.7,2442.1,0.23086001]
[1730792768467,3.2078,2442.7,2442.5,0.40963]
[1730792769258,0.4096,2442.8,2442.5,0.40963]
[1730792769461,6.10684582,2443.0,2442.1,1.02424]
[1730792769462,0.40958,2442.9,2442.6,0.40961]
[1730792769659,6.10684582,2443.0,2442.6,0.40961]
[1730792769866,0.40957,2442.9,2442.6,0.40961]
[1730792770270,0.40958,2442.9,2442.6,0.40961]
[1730792770460,6.10684582,2443.0,2442.3,3.7134]
[1730792770666,6.51640582,2443.0,2442.7,0.40959]
[1730792770867,6.51640582,2443.0,2442.3,4.73757]
[1730792770868,0.40957,2442.9,2442.6,0.40961]
[1730792771272,0.40957,2442.9,2442.3,4.73757]
[1730792771569,6.10684582,2443.0,2442.3,4.73757]
[1730792771570,3.2078,2443.3,2442.6,3.2078]
[1730792771770,3.61731,2443.3,2443.0,0.40954]
[1730792772066,0.40953,2443.2,2442.9,0.40956]
[1730792772277,3.61731,2443.3,2443.0,0.40955]
[1730792772468,3.2078,2443.3,2442.8,0.4742]
[1730792772669,2.55894582,2443.5,2442.9,3.2078]
[1730792772863,0.5054,2443.6,2442.8,3.03314582]
[1730792773060,3.98926,2443.7,2443.4,0.40948]
[1730792773261,0.44126,2443.7,2443.2,3.2078]
[1730792773465,0.03182,2443.7,2443.4,0.40948]
[1730792773869,0.03182,2443.7,2443.5,0.40947]
[1730792774267,0.03182,2443.7,2443.6,0.40945]
[1730792774577,0.03182,2443.7,2443.6,4.50145]
[1730792775276,0.03182,2443.7,2443.6,4.092]
[1730792775473,0.03182,2443.7,2443.1,0.4846]
[1730792775474,4.12382,2443.7,2442.9,3.2078]
[1730792775670,0.40952,2443.3,2442.9,3.61736]
[1730792776174,2.55894582,2443.5,2442.9,3.2078]
[1730792776368,0.40955,2443.1,2442.8,0.4832]
[1730792776568,3.2078,2443.2,2442.8,0.4832]
[1730792776770,0.40956,2443.0,2442.8,0.4832]
[1730792777269,3.2078,2443.2,2442.8,0.4832]
[1730792777573,0.40956,2443.0,2442.8,0.4832]
[1730792777769,3.2078,2443.2,2442.8,0.4832]
[1730792777770,0.40954,2443.1,2442.8,0.4832]
[1730792777962,0.40956,2443.0,2442.8,0.4832]
[1730792778170,3.2078,2443.2,2442.5,0.40963]
[1730792778171,0.40958,2442.9,2442.5,0.40963]
[1730792778369,0.4096,2442.7,2442.4,0.4806]
[1730792778773,0.4741,2443.0,2442.4,0.4806]
[1730792779168,0.88367,2443.0,2442.6,0.40962]
[1730792779376,0.40959,2442.8,2442.4,0.89024]
[1730792780078,0.40958,2442.9,2442.5,0.40964]
[1730792780279,0.4741,2443.0,2442.4,0.4806]
[1730792780475,0.4741,2443.0,2442.3,3.96399637]
[1730792780476,0.4096,2442.7,2442.3,3.6883]
[1730792780776,2.55894582,2442.8,2442.3,3.6883]
[1730792780977,0.40961,2442.7,2442.3,4.09796]
[1730792781478,0.40961,2442.7,2442.3,0.40966]
[1730792781677,0.40964,2442.5,2442.2,0.4827]
[1730792781881,0.40963,2442.6,2442.2,0.89238]
[1730792782180,0.40964,2442.5,2442.2,0.89238]
[1730792782381,0.40963,2442.6,2442.2,0.89238]
[1730792782884,2.55894582,2442.8,2442.2,0.89238]
[1730792783273,0.40963,2442.6,2442.2,0.89238]
[1730792783478,2.55894582,2442.8,2442.2,0.4827]
[1730792783973,0.40962,2442.6,2442.2,0.89237]
[1730792784271,2.55894582,2442.8,2442.2,0.4827]
[1730792784272,0.40964,2442.5,2442.2,0.4827]
[1730792784778,0.40969,2442.2,2442.1,0.493]
[1730792785079,0.40965,2442.4,2442.0,3.61751]
[1730792786267,0.40965,2442.4,2442.0,3.2078]
[1730792786483,0.40965,2442.4,2442.0,3.61751]
[1730792787378,0.40965,2442.4,2442.1,0.4097]
[1730792787578,0.40967,2442.3,2442.0,3.2078]
[1730792787977,2.55894582,2442.5,2442.0,3.2078]
[1730792788178,0.40965,2442.4,2442.1,0.4097]
[1730792788575,0.40965,2442.4,2442.0,3.61751]
[1730792788775,2.55894582,2442.5,2442.0,3.2078]
[1730792788978,0.552,2442.4,2442.0,3.2078]
[1730792789282,0.40964,2442.5,2442.1,0.40969]
[1730792789483,0.40964,2442.5,2442.2,0.40968]
[1730792789880,2.55894582,2442.7,2442.0,3.2078]
[1730792790080,0.40965,2442.5,2442.1,0.4097]
[1730792790474,0.40965,2442.5,2442.0,3.2078]
[1730792790679,0.40965,2442.5,2442.1,0.40969]
[1730792790881,2.96855582,2442.7,2442.3,0.40966]
[1730792791381,0.40959,2442.8,2442.5,0.40963]
[1730792791582,3.61738,2442.9,2442.6,0.40961]
[1730792792188,0.4096,2442.8,2442.4,0.92184]
[1730792792383,0.4096,2442.8,2442.5,0.40963]
[1730792792685,3.61738,2442.9,2442.6,0.40961]
[1730792793089,2.55894582,2442.7,2442.4,0.5122]
[1730792793281,0.40964,2442.5,2442.1,0.5202]
[1730792793479,3.2078,2442.6,2442.3,0.40966]
[1730792793784,0.40959,2442.8,2442.5,0.40963]
[1730792793999,3.2078,2442.9,2442.6,0.40961]
[1730792794382,3.2078,2442.9,2442.8,0.40959]
[1730792794683,3.2078,2442.9,2442.7,0.40959]
[1730792794889,3.2078,2442.9,2442.8,0.40959]
[1730792796988,3.2078,2442.9,2442.7,0.4096]
[1730792797190,3.2078,2442.9,2442.4,0.5246]
[1730792797191,3.61738,2442.9,2442.4,0.5246]
[1730792797487,0.40965,2442.5,2442.2,0.40968]
[1730792798080,0.40966,2442.4,2442.1,0.9299]
[1730792798285,3.7466,2442.6,2442.1,0.5202]
[1730792798479,0.40965,2442.5,2442.1,0.5202]
[1730792798685,3.7466,2442.6,2442.1,0.5202]
[1730792798892,0.40964,2442.5,2442.2,0.40969]
[1730792799388,0.40964,2442.5,2442.2,0.40968]
[1730792800189,0.40964,2442.5,2442.3,0.23126411]
[1730792800389,0.5388,2442.6,2442.1,0.5202]
[1730792800691,0.40964,2442.5,2442.2,0.64093919]
[1730792800892,0.40964,2442.5,2442.3,0.23125919]
[1730792801079,0.40964,2442.5,2442.2,0.40968]
[1730792801080,0.40965,2442.5,2442.2,0.40968]
[1730792801282,0.40965,2442.5,2442.3,0.23133801]
[1730792801482,0.5388,2442.6,2442.1,0.5202]
[1730792801686,0.40965,2442.4,2442.2,0.23133673]
[1730792801888,0.40965,2442.4,2442.3,0.23133673]
[1730792802093,0.5388,2442.6,2442.3,0.23133673]
[1730792802286,0.5388,2442.6,2442.1,0.9299]
[1730792802287,2.96861582,2442.4,2442.1,0.9299]
[1730792802489,0.40968,2442.3,2442.1,0.5202]
[1730792802790,2.55894582,2442.4,2442.1,0.9299]
[1730792802791,2.96861582,2442.4,2442.1,0.9299]
[1730792802984,2.55894582,2442.4,2442.1,0.5202]
[1730792803188,2.55894582,2442.4,2442.1,0.9299]
[1730792803189,2.96860582,2442.4,2442.1,0.9299]
[1730792803696,0.40968,2442.3,2442.1,0.5202]
[1730792803895,2.55894582,2442.4,2442.1,0.5202]
[1730792804090,0.94843,2442.6,2442.2,0.40969]
[1730792804292,0.40964,2442.5,2442.2,0.40969]
[1730792804898,0.5388,2442.6,2442.1,0.5202]
[1730792805089,0.40965,2442.5,2442.2,0.64111645]
[1730792805290,3.2078,2442.7,2442.6,0.40962]
[1730792805491,3.2078,2442.7,2442.1,0.5202]
[1730792805794,0.40963,2442.6,2442.3,0.40966]
[1730792805990,5.76674582,2442.7,2442.2,0.40968]
[1730792806190,5.76674582,2442.7,2442.3,0.23144325]
[1730792806191,0.40965,2442.5,2442.3,0.23144325]
[1730792806394,0.40962,2442.6,2442.1,0.5202]
[1730792806587,0.40962,2442.6,2442.3,0.40965]
[1730792806983,6.17636582,2442.7,2442.4,0.40965]
[1730792807395,6.17636582,2442.7,2442.1,0.5202]
[1730792807396,0.40963,2442.6,2442.3,0.40966]
[1730792807897,0.40962,2442.6,2442.4,0.40965]
[1730792808191,5.76674582,2442.7,2442.1,0.5202]
[1730792808392,6.17635582,2442.7,2442.4,0.40965]
[1730792808588,0.40963,2442.6,2442.3,0.40966]
[1730792808790,0.40963,2442.6,2442.4,0.23143575]
[1730792808998,0.40962,2442.6,2442.3,0.40966]
[1730792810699,5.76674582,2442.7,2442.1,0.5202]
[1730792810889,0.40963,2442.6,2442.3,0.40966]
[1730792811300,2.55894582,2442.7,2442.1,0.5202]
[1730792811601,0.40964,2442.5,2442.2,0.64108864]
[1730792811897,0.40963,2442.6,2442.3,0.64106864]
[1730792812196,0.40963,2442.6,2442.3,0.40967]
[1730792812197,0.40964,2442.6,2442.3,0.40967]
[1730792812505,0.40964,2442.6,2442.4,0.40965]
[1730792813091,0.40963,2442.6,2442.3,0.40966]
[1730792813295,0.40964,2442.5,2442.2,0.40969]
[1730792813496,2.55894582,2442.7,2442.3,0.23140112]
[1730792813702,0.40965,2442.4,2442.2,0.40968]
[1730792813901,0.40965,2442.4,2442.1,0.40969]
[1730792814099,3.2078,2442.5,2442.2,0.23140232]
[1730792814304,0.40966,2442.4,2442.1,0.4097]
[1730792814604,0.40966,2442.4,2442.2,0.23140374]
[1730792814898,0.40966,2442.4,2442.1,0.4097]
[1730792815097,0.40966,2442.4,2442.2,0.40968]
[1730792815296,3.2078,2442.5,2442.2,0.40968]
[1730792815493,2.83512905,2444.3,2442.0,3.7143]
[1730792815494,5.76674582,2442.8,2442.0,3.7143]
[1730792815698,0.40965,2442.5,2442.2,0.40968]
[1730792815895,0.40965,2442.4,2442.1,0.40969]
[1730792816095,0.40965,2442.5,2442.2,0.64105702]
[1730792816297,6.78104582,2442.8,2442.0,3.7143]
[1730792816503,7.80503582,2442.8,2442.1,0.23135473]
[1730792816709,0.40967,2442.4,2442.1,0.4097]
[1730792817611,7.80503582,2442.8,2442.0,3.7143]
[1730792817812,0.40965,2442.5,2442.2,0.40968]
[1730792818007,7.80503582,2442.8,2442.2,0.40968]
[1730792818211,2.55894582,2442.6,2442.0,3.7143]
[1730792818411,5.76674582,2442.1,2441.5,0.5541]
[1730792818619,0.40977,2441.7,2441.6,0.23146455]
[1730792820019,5.76674582,2441.8,2441.6,0.23146455]
[1730792820210,5.76674582,2441.8,2441.7,0.23146455]
[1730792820410,6.17651582,2441.8,2441.7,0.23146455]
[1730792820612,10.27171582,2441.8,2441.7,0.23146455]
[1730792823014,10.27171582,2441.8,2441.0,0.5]
[1730792823015,1.02448,2441.6,2441.0,0.5]
[1730792823312,5.76674582,2441.4,2441.0,0.5]
[1730792823813,0.40985,2441.3,2441.0,0.90988]
[1730792824214,0.40985,2441.3,2441.1,0.40987]
[1730792824512,0.40985,2441.3,2441.0,0.5]
[1730792824513,0.40985,2441.3,2441.0,0.90988]
[1730792824907,5.76674582,2441.4,2441.0,0.5]
[1730792825415,3.2078,2441.4,2441.0,0.5]
[1730792825616,3.2078,2441.4,2441.2,0.40985]
[1730792825809,3.2078,2441.4,2441.0,0.5]
[1730792826115,3.2078,2441.4,2441.2,0.40985]
[1730792826421,3.61762,2441.4,2441.1,0.40986]
[1730792826715,3.2078,2441.4,2441.2,0.40985]
[1730792827119,3.2078,2441.4,2441.0,0.5]
[1730792827323,3.2078,2441.4,2441.2,0.40985]
[1730792827615,3.61762,2441.4,2441.1,0.40986]
[1730792827820,3.2078,2441.4,2441.2,0.40985]
[1730792828520,3.2078,2441.4,2441.0,0.5]
[1730792828718,3.61761,2441.5,2441.0,0.5]
[1730792828921,0.40981,2441.5,2441.2,0.40985]
[1730792829120,0.40982,2441.5,2441.0,0.5]
[1730792829523,0.40982,2441.5,2441.2,0.40985]
[1730792830420,3.61762,2441.5,2441.2,0.40985]
[1730792830621,3.2078,2441.5,2441.0,0.5]
[1730792831017,3.2078,2441.5,2441.2,0.40985]
[1730792831018,3.61761,2441.5,2441.2,0.40985]
[1730792831410,0.40983,2441.4,2441.0,0.5]
[1730792831813,3.2078,2441.5,2441.0,0.5]
[1730792832016,3.61761,2441.5,2441.2,0.40984]
[1730792832216,2.55894582,2441.3,2441.0,0.5]
[1730792832416,2.55894582,2441.3,2441.1,0.40986]
[1730792832621,2.55894582,2441.3,2441.0,0.5]
[1730792832622,2.96878582,2441.3,2441.0,0.90988]
[1730792832813,0.4099,2441.0,2440.8,3.7335]
[1730792833015,0.40991,2440.9,2440.8,3.7335]
[1730792833216,2.55894582,2441.1,2440.8,3.7335]
[1730792833419,0.4099,2441.0,2440.8,3.7335]
[1730792834015,2.55894582,2441.1,2440.8,3.7335]
[1730792834328,0.40989,2441.0,2440.8,3.7335]
[1730792835921,2.55894582,2441.1,2440.8,3.7335]
[1730792836120,2.55894582,2441.3,2441.2,0.40985]
[1730792836320,2.55894582,2441.5,2440.8,4.75829]
[1730792836827,2.55894582,2441.5,2441.0,1.02473]
[1730792837023,2.96875582,2441.5,2441.1,1.0015]
[1730792837218,2.55894582,2441.5,2441.2,0.40984]
[1730792837418,2.55894582,2441.5,2441.3,0.40984]
[1730792837623,2.96875582,2441.5,2441.2,0.40985]
[1730792837827,2.96875582,2441.5,2441.1,1.0015]
[1730792837828,2.55894582,2441.5,2441.3,0.40984]
[1730792838024,2.55894582,2441.5,2441.1,1.0015]
[1730792838228,2.55894582,2441.5,2441.4,0.40982]
[1730792838530,2.55894582,2441.5,2441.1,4.2093]
[1730792838827,2.55894582,2441.5,2441.3,0.40983]
[1730792841020,2.55894582,2441.5,2441.1,4.2093]
[1730792841525,2.96875582,2441.5,2441.3,0.40983]
[1730792841731,2.55894582,2441.5,2441.3,0.40983]
[1730792842226,2.96875582,2441.5,2441.2,0.40984]
[1730792842429,2.55894582,2441.3,2441.2,0.40985]
[1730792843419,2.55894582,2441.3,2441.2,0.91325]
[1730792846723,2.55894582,2441.3,2441.2,0.5034]
[1730792847034,2.55894582,2441.3,2441.2,0.91325]
[1730792847425,2.55894582,2441.3,2441.2,0.5034]
[1730792847731,2.96878582,2441.3,2441.2,0.5034]
[1730792848026,2.55894582,2441.3,2441.1,3.2078]
[1730792848229,7.3038,2441.2,2440.6,7.776]
[1730792848433,2.55894582,2440.7,2440.6,8.18596]
[1730792848725,2.55894582,2440.7,2440.6,7.776]
[1730792848930,3.2078,2440.9,2440.8,0.40992]
[1730792849129,3.2078,2440.9,2440.7,0.40993]
[1730792849323,3.2078,2440.9,2440.6,7.776]
[1730792849833,3.2078,2440.9,2440.7,0.40994]
[1730792850027,3.61771,2440.9,2440.6,8.18595]
[1730792850724,2.96888582,2440.7,2440.6,7.776]
[1730792851124,7.06648582,2440.7,2440.6,7.776]
[1730792851327,7.06648582,2440.7,2440.6,3.5261386]
[1730792853126,2.96888582,2440.7,2440.6,3.5261386]
[1730792853327,7.06648582,2440.7,2440.6,3.5261386]
[1730792853525,8.17148582,2440.7,2440.6,3.5261386]
[1730792854131,2.55894582,2440.7,2440.6,3.9360986]
[1730792854428,2.55894582,2440.7,2440.6,3.5097586]
[1730792854628,2.55894582,2440.7,2440.6,3.9197186]
[1730792856938,2.55894582,2440.7,2440.6,3.9037186]
[1730792858633,0.40988,2441.1,2440.9,0.4099]
[1730792858929,6.17661582,2441.2,2441.0,0.95588]
[1730792859127,0.40987,2441.1,2441.0,0.546]
[1730792859525,6.17660582,2441.2,2441.0,0.95589]
[1730792859726,0.40987,2441.1,2441.0,0.95589]
[1730792859936,6.17660582,2441.2,2441.0,0.95589]
[1730792860734,6.17660582,2441.2,2441.0,0.546]
[1730792860735,5.76674582,2441.2,2441.0,0.546]
[1730792860926,5.76674582,2441.2,2441.1,0.40987]
[1730792861827,2.55894582,2441.2,2441.1,0.40987]
[1730792862730,3.2078,2441.9,2441.1,7.53552993]
[1730792862933,2.55894582,2441.6,2441.4,0.40981]
[1730792863130,2.55894582,2441.6,2441.3,0.40983]
[1730792863335,2.55894582,2441.4,2441.3,0.40983]
[1730792864235,2.55894582,2441.4,2441.3,0.64089365]
[1730792867531,2.55894582,2441.4,2441.3,0.23106365]
[1730792867731,2.55894582,2441.4,2441.3,0.64090365]
[1730792868125,2.55894582,2441.6,2441.3,0.75166365]
[1730792868434,2.55894582,2441.6,2441.5,0.4098]
[1730792868837,2.55894582,2441.6,2441.5,0.9383]
[1730792869132,5.76674582,2441.9,2441.6,0.40978]
[1730792869326,5.76674582,2441.9,2441.6,0.5365]
[1730792869734,5.76674582,2441.9,2441.7,0.40977]
[1730792870232,5.76674582,2441.9,2441.8,0.5111]
[1730792870439,2.55894582,2441.9,2441.8,0.5111]
[1730792870626,7.06388582,2441.9,2441.8,0.5111]
[1730792871039,6.65414582,2441.9,2441.8,0.5111]
[1730792871240,2.55894582,2441.9,2441.8,0.5111]
[1730792871535,2.55894582,2441.9,2441.8,0.92085]
[1730792871742,2.55894582,2442.2,2441.8,7.8141]
[1730792871936,2.55894582,2442.4,2441.8,3.7189]
[1730792872130,2.55894582,2442.4,2442.2,0.40969]
[1730792872438,3.2078,2442.6,2442.1,3.2078]
[1730792872629,5.76674582,2442.6,2442.5,0.40964]
[1730792873837,2.55894582,2442.6,2442.5,0.40964]
[1730792874332,2.55894582,2442.6,2442.4,3.2078]
[1730792874333,2.55894582,2442.9,2442.7,0.4096]
[1730792874532,2.55894582,2443.1,2442.8,1.0521]
[1730792874732,2.55894582,2443.1,2443.0,0.40955]
[1730792874940,0.02824,2443.2,2443.1,0.40954]
[1730792876032,0.02824,2443.2,2443.1,4.50234]
[1730792876435,0.40945,2443.7,2443.1,4.0928]
[1730792876631,2.55894582,2443.8,2443.4,0.40948]
[1730792876834,2.55894582,2443.6,2443.3,3.2078]
[1730792877141,2.55894582,2443.6,2443.3,3.6173]
[1730792877338,2.55894582,2443.6,2443.4,0.5598]
[1730792878239,2.96840582,2443.6,2443.4,0.5598]
[1730792878446,2.55894582,2443.6,2443.4,0.5598]
[1730792878641,2.55894582,2443.6,2442.8,0.5211]
[1730792878642,7.3006,2443.5,2442.8,0.5211]
[1730792878843,2.55894582,2443.3,2443.0,0.40954]
[1730792879048,2.55894582,2443.3,2442.9,0.40956]
[1730792879345,2.55894582,2443.3,2443.0,0.40955]
[1730792880259,2.55894582,2443.3,2443.1,0.40953]
[1730792880441,3.2078,2443.5,2443.0,3.2078]
[1730792880843,3.2078,2443.5,2443.3,0.4095]
[1730792881047,3.2078,2443.5,2443.4,1.0462]
[1730792881844,3.2078,2443.5,2443.4,5.54849]
[1730792882543,2.55894582,2444.2,2443.4,6.16272]
[1730792882845,0.4677,2444.4,2444.0,3.2078]
[1730792882846,2.55894582,2444.4,2444.0,3.2078]
[1730792883055,2.96830582,2444.2,2444.0,3.2078]
[1730792883248,2.55894582,2444.2,2443.7,3.2078]
[1730792883545,2.55894582,2444.2,2443.8,0.40941]
[1730792885547,2.55894582,2444.0,2443.5,3.73]
[1730792885746,2.96833582,2444.0,2443.6,0.40945]
[1730792886239,2.55894582,2444.0,2443.4,1.0462]
[1730792886545,2.55894582,2444.0,2443.8,0.40941]
[1730792887448,2.55894582,2444.3,2443.8,3.2078]
[1730792887752,0.40935,2444.2,2443.9,1.0803]
[1730792887946,2.55894582,2444.1,2443.9,1.0803]
[1730792888149,2.55894582,2444.1,2443.9,1.4897]
[1730792888953,2.55894582,2444.1,2443.9,1.0803]
[1730792890146,2.55894582,2444.3,2444.0,0.40939]
[1730792891246,2.96828582,2444.3,2443.9,1.4897]
[1730792891449,2.96828582,2444.3,2444.0,0.40938]
[1730792891752,2.55894582,2444.3,2443.9,1.0803]
[1730792891949,2.96828582,2444.3,2443.9,1.48969]
[1730792892256,2.96828582,2444.3,2443.9,1.0803]
[1730792892451,2.55894582,2444.0,2443.9,1.0803]
[1730792892652,2.96833582,2444.0,2443.9,1.0803]
[1730792892956,2.55894582,2444.0,2443.8,3.2078]
[1730792893346,0.4094,2443.9,2443.8,3.2078]
[1730792893549,0.9694,2443.9,2443.8,3.2078]
[1730792893954,0.56,2443.9,2443.8,3.2078]
[1730792894154,2.55894582,2444.0,2443.8,3.2078]
[1730792894457,3.2078,2444.3,2443.8,3.2078]
[1730792894458,3.11894582,2444.3,2443.8,3.2078]
[1730792894753,3.11894582,2444.3,2444.1,0.40936]
[1730792894954,3.11894582,2444.3,2443.8,3.2078]
[1730792894955,3.2078,2444.6,2443.9,0.5709]
[1730792895345,3.61709,2444.6,2444.2,0.40934]
[1730792895962,5.76674582,2444.6,2443.9,0.5709]
[1730792896154,2.55894582,2444.3,2443.9,0.5709]
[1730792896456,0.40937,2444.1,2443.9,0.5709]
[1730792897452,0.5322,2444.2,2443.9,0.5709]
[1730792897852,0.4094,2443.9,2443.8,3.2078]
[1730792898158,0.40945,2443.7,2443.5,3.763]
[1730792898456,2.55894582,2444.1,2443.5,3.2078]
[1730792898656,0.40945,2443.7,2443.5,3.2078]
[1730792898858,44.0078,2444.0,2443.5,3.2078]
[1730792899155,0.40947,2443.5,2443.2,3.61731]
[1730792899651,3.61725,2443.7,2443.2,3.2078]
[1730792899859,3.61725,2443.7,2443.4,0.40948]
[1730792900157,3.61725,2443.7,2443.2,3.2078]
[1730792900358,3.61725,2443.7,2443.4,0.40948]
[1730792900558,2.55894582,2443.9,2443.2,3.2078]
[1730792900761,0.40944,2443.7,2443.4,0.40948]
[1730792900958,0.40943,2443.8,2443.5,0.40946]
[1730792901162,0.40943,2443.8,2443.2,3.2078]
[1730792901163,3.2078,2444.0,2443.3,1.0793]
[1730792901358,0.40943,2443.8,2443.5,0.40946]
[1730792901867,0.40941,2443.9,2443.6,0.40944]
[1730792902062,3.2078,2444.0,2443.5,0.40946]
[1730792902364,3.2078,2444.0,2443.3,0.5479]
[1730792902562,3.2078,2444.0,2443.4,0.40948]
[1730792902771,0.40946,2443.6,2443.3,0.95739]
[1730792902964,2.55894582,2443.6,2443.2,3.2078]
[1730792903162,3.2078,2443.7,2443.2,3.2078]
[1730792903360,3.2078,2443.7,2443.5,0.40946]
[1730792903557,0.40946,2443.6,2443.3,0.40949]
[1730792903762,0.40947,2443.5,2443.2,3.61731]
[1730792903960,0.5321,2443.6,2443.2,3.2078]
[1730792904159,0.94156,2443.6,2443.3,0.4095]
[1730792904659,0.5321,2443.6,2443.5,0.40947]
[1730792905255,0.94155,2443.6,2443.3,0.40949]
[1730792905562,0.5321,2443.6,2443.2,3.2078]
[1730792905868,0.40941,2443.9,2443.6,0.40945]
[1730792906063,0.40941,2443.9,2443.2,3.2078]
[1730792906258,3.7493,2444.1,2443.5,3.2078]
[1730792906463,3.7493,2444.1,2443.8,0.40942]
[1730792906464,0.40939,2444.0,2443.8,0.40942]
[1730792906764,3.7493,2444.1,2443.8,0.40942]
[1730792906964,4.15868,2444.1,2443.8,0.40942]
[1730792907361,0.40939,2444.0,2443.8,0.40942]
[1730792907666,6.30824582,2444.1,2443.6,1.0813]
[1730792907863,0.40946,2443.6,2443.0,6.79059582]
[1730792908166,3.2078,2443.8,2443.1,1.84899513]
[1730792908466,3.61723,2443.8,2443.5,0.40946]
[1730792908665,3.2078,2443.8,2443.1,1.6198]
[1730792908864,2.55894582,2443.7,2443.2,0.22935681]
[1730792909065,0.5716,2443.6,2443.1,1.0813]
[1730792909368,0.98106,2443.6,2443.3,0.40949]
[1730792909674,0.40948,2443.5,2443.2,0.40951]
[1730792910867,0.98106,2443.6,2443.3,0.4095]
[1730792911863,0.5716,2443.6,2443.1,1.0813]
[1730792912073,0.5716,2443.6,2443.3,0.4095]
[1730792912363,0.98106,2443.6,2443.4,0.22990574]
[1730792912563,0.98106,2443.6,2443.3,0.4095]
[1730792912763,0.5716,2443.6,2443.4,0.23010714]
[1730792912960,0.5716,2443.6,2443.1,1.0813]
[1730792913261,0.5716,2443.6,2443.2,0.59873319]
[1730792913470,2.55894582,2443.4,2443.3,0.23034622]
[1730792913661,0.40954,2443.1,2443.0,3.2078]
[1730792913865,5.76674582,2443.1,2442.9,0.09194]
[1730792914165,1.25915,2443.0,2442.9,0.09194]
[1730792914563,5.35275,2443.0,2442.9,0.09194]
[1730792915162,1.25915,2443.0,2442.9,0.09194]
[1730792915363,5.35275,2443.0,2442.9,0.09194]
[1730792915767,4.9432,2443.0,2442.7,1.59693847]
[1730792915966,2.55894582,2442.9,2442.7,1.59693847]
[1730792916272,3.61739,2442.8,2442.7,1.59693847]
[1730792916471,7.71099,2442.8,2442.7,1.59693847]
[1730792916671,7.71099,2442.8,2442.6,2.12925129]
[1730792916672,0.4096,2442.7,2442.6,2.12925129]
[1730792916876,4.5032,2442.7,2442.6,2.12925129]
[1730792917166,4.5032,2442.7,2442.5,0.40963]
[1730792917167,0.40962,2442.6,2442.5,0.40963]
[1730792917569,6.65334582,2442.6,2442.2,0.40968]
[1730792917777,0.40966,2442.4,2442.2,0.40968]
[1730792918069,3.2078,2442.5,2442.1,3.2078]
[1730792918070,0.40969,2442.2,2442.1,3.2078]
[1730792918471,2.55894582,2442.3,2442.1,3.2078]
[1730792918764,0.5179,2442.4,2442.3,0.40967]
[1730792918973,3.2078,2442.5,2442.4,0.40965]
[1730792919161,2.55894582,2442.8,2442.2,1.0688]
[1730792919362,3.2078,2442.9,2442.2,1.0688]
[1730792919568,0.40963,2442.6,2442.4,0.40964]
[1730792920368,2.96853582,2442.8,2442.6,0.4096]
[1730792920571,2.96853582,2442.8,2442.3,0.532]
[1730792920572,2.55894582,2442.8,2442.3,0.532]
[1730792920876,0.40963,2442.6,2442.4,0.40965]
[1730792921278,2.55894582,2442.8,2442.3,0.532]
[1730792921572,0.40963,2442.6,2442.4,0.40965]
[1730792921977,0.40964,2442.5,2442.3,0.94166]
[1730792922365,1.6389,2443.1,2441.8,3.2078]
[1730792922366,5.76674582,2442.6,2441.8,3.2078]
[1730792922673,0.40971,2442.1,2441.9,0.40973]